[Event "13th All African Mixed Team Rapid-ch 202"]
[Site "Accra"]
[Date "2024.03.09"]
[Round "6.3"]
[White "Arab, Adlane"]
[Black "Silva, David"]
[Result "1/2-1/2"]
[ECO "E61"]
[WhiteElo "2477"]
[BlackElo "2358"]
[Annotator "TA"]
[PlyCount "81"]
[EventDate "2024.03.07"]
[EventType "rapid"]
[EventCountry "GHA"]
[SourceTitle "playchess.com"]
[Source "ChessBase"]
[SourceQuality "1"]
[TimeControl "900+10"]

{[%evp 16,81,35,44,48,43,48,53,46,41,169,135,143,66,63,60,60,66,98,109,96,49,50,52,50,50,47,46,39,52,47,23,29,22,23,8,8,11,11,12,13,8,9,8,8,8,16,0,0,0,1,0,4,0,0,0,0,0,0,0,8,0,8,0,0,0,0,-1]} 1. d4 {[%emt 0:00:02]} Nf6 {[%emt 0:00:01]} 2. c4 {[%emt 0:00:01]} g6 {[%emt 0:00:01]} 3. Nc3 {[%emt 0:00:05]} Bg7 {[%emt 0:00:05]} 4. Nf3 {[%emt 0:00:03]} d6 {[%emt 0:00:02]} 5. Bf4 {[%emt 0:00:07]} O-O {[%emt 0:00:12]} 6. e3 {[%emt 0:00:02]} Nh5 {[%emt 0:00:52]} 7. Bg5 {[%emt 0:00:04][%cal Bf4g5,Bg5h4,Bh4g3][%mdl 32]} h6 {[%emt 0:00:02]} 8. Bh4 {[%emt 0:00:05]} g5 {[%emt 0:00:10]} 9. Nd2 {[%emt 0:00:10] Bxg5 would now be deadly.} Nf4 {[%emt 0:00:12]} 10. Bg3 {[%emt 0:00:39] Wards off e5} e5 {[%emt 0:00:07]} 11. dxe5 {[%emt 0:00:38]} (11. exf4 exf4 12. Bxf4 gxf4 $11) 11... dxe5 {[%emt 0:00:02][%cal Ob8a6] White is slightly better.} 12. h4 {[%emt 0:00:18] [#] Strongly threatening hxg5.} ({Reject} 12. exf4 exf4 13. Bxf4 gxf4 $15) 12... Ne6 {[%emt 0:02:45]} (12... Bf5 $1 $14) 13. hxg5 $18 {[%emt 0:00:10]} Nxg5 {[%emt 0:00:02]} 14. Nde4 {[%emt 0:01:05]} (14. Qc2 $16) 14... Qxd1+ $14 {[%emt 0:02:50]} 15. Rxd1 {[%emt 0:00:07]} Nxe4 {[%emt 0:01:24]} 16. Nxe4 {[%emt 0:00:01]} Bf5 {[%emt 0:00:01]} 17. Bd3 {[%emt 0:01:03][%cal Oe4f6] White has more active pieces. The black rooks are passive.} Bg6 {[%emt 0:09:12]} 18. Nc5 {[%emt 0:00:18]} (18. Bh4 $16) 18... Bxd3 {[%emt 0:00:00]} 19. Rxd3 {[%emt 0:00:46]} b6 {[%emt 0:00:00]} 20. Nd7 {[%emt 0:00:20]} e4 {[%emt 0:00:00][%csl LRb2,LRd3]} 21. Rd1 {[%emt 0:00:24]} Nxd7 {[%emt 0:00:00]} 22. Rxd7 {[%emt 0:00:02]} Rfd8 {[%emt 0:00:00]} 23. Rxc7 {[%emt 0:02:15]} Bxb2 {[%emt 0:00:00] [#] Hoping for ...Bc3+.} 24. O-O {[%emt 0:00:06]} (24. Rxh6 Bc3+ 25. Ke2 Rd2+ 26. Ke1 Rad8 (26... Rxa2+ $2 27. Kd1 $19) (26... Rd6+ $2 27. Ke2 $19) (26... Rxa2+ $2 27. Kd1 $19) (26... Rd6+ {gets mated.} 27. Ke2 Rd2+ 28. Ke1 Rad8 29. Rh8+ Kxh8 30. Be5+ Bxe5 31. Rc8 Bc3 32. Rxd8+ Rxd8+ 33. Ke2 Rd2+ 34. Ke1 Rxa2+ 35. Kd1 Rxf2 36. g3 a5 37. c5 bxc5 38. g4 a4 39. g5 a3 40. g6 a2 41. g7+ Kxg7 42. Kc1 a1=Q#)) 24... Rdc8 {[%emt 0:00:00]} 25. Rd1 {[%emt 0:00:37]} Rxc7 $1 {[%emt 0:00:00] The position is equal.} 26. Bxc7 $11 {[%emt 0:00:01][%mdl 4096] Endgame. KRB-KRB} Kg7 {[%emt 0:00:00]} 27. Rd7 {[%emt 0:00:23]} Rc8 {[%emt 0:00:00]} 28. Bf4 {[%emt 0:00:37]} Rxc4 {[%emt 0:00:00]} 29. Rxa7 {[%emt 0:00:03]} b5 {[%emt 0:00:00]} 30. Rb7 {[%emt 0:00:13]} b4 {[%emt 0:00:00]} 31. Rb6 {[%emt 0:00:33]} h5 {[%emt 0:00:00][%cal Bh6h5,Bh5h4][%mdl 32]} 32. Kh2 {[%emt 0:00:47]} Bf6 {[%emt 0:00:00]} 33. Kg3 {[%emt 0:00:19]} Bd8 {[%emt 0:00:00]} 34. Rb5 {[%emt 0:00:16]} Kg6 {[%emt 0:00:00]} 35. Bd6 {[%emt 0:00:20]} h4+ {[%emt 0:00:00]} 36. Kh3 {[%emt 0:00:15]} Rc2 {[%emt 0:00:00][%csl LRa2,LRf2]} 37. Rb8 {[%emt 0:00:56]} Bf6 {[%emt 0:00:00]} 38. Rxb4 {[%emt 0:00:39]} Rxa2 {[%emt 0:00:00]} 39. Rxe4 {[%emt 0:00:18]} Rxf2 {[%emt 0:00:05]} 40. Rg4+ {[%emt 0:00:27]} Kf5 {[%emt 0:00:11]} 41. Rf4+ {[%emt 0:00:35] Weighted Error Value: White=0.08 (flawless) /Black=0.09 (flawless) .  Mistake:       	White=2     	Black=1      Inaccurate:     	---       	Black=1      OK:         	White=9     	Black=15     Best:        	White=1     	Black=3      Strong:       	---       	Black=1} 1/2-1/2

[Event "13th All African Mixed Team Rapid-ch 202"]
[Site "Accra"]
[Date "2024.03.09"]
[Round "6.4"]
[White "Junior, Ednasia"]
[Black "Nassr, Lina"]
[Result "0-1"]
[ECO "D35"]
[WhiteElo "1915"]
[BlackElo "2080"]
[Annotator "RC"]
[PlyCount "100"]
[EventDate "2024.03.07"]
[EventType "rapid"]
[EventCountry "GHA"]
[SourceTitle "playchess.com"]
[Source "ChessBase"]
[SourceQuality "1"]
[TimeControl "900+10"]

1. c4 {[%emt 0:00:01]} e6 {[%emt 0:00:04]} 2. Nc3 {[%emt 0:00:09]} Nf6 {[%emt 0:00:03]} 3. Nf3 {[%emt 0:00:07]} d5 {[%emt 0:00:04]} 4. cxd5 {[%emt 0:00:39]} exd5 {[%emt 0:00:05]} 5. d4 {[%emt 0:00:29]} c6 {[%emt 0:00:14]} 6. g3 {[%emt 0:00:25]} Bd6 {[%emt 0:00:37]} 7. Bg2 {[%emt 0:00:02]} O-O {[%emt 0:00:19]} 8. O-O {[%emt 0:00:01]} h6 {[%emt 0:00:27]} 9. Re1 {[%emt 0:00:42]} Re8 {[%emt 0:00:23]} 10. Qc2 {[%emt 0:00:45]} Nbd7 {[%emt 0:02:07]} 11. Nd2 {[%emt 0:01:10]} Nf8 {[%emt 0:00:56]} 12. b3 {[%emt 0:01:12]} Be6 {[%emt 0:01:31]} 13. e4 {[%emt 0:02:30]} dxe4 {[%emt 0:00:15]} 14. Ndxe4 {[%emt 0:00:42]} Nxe4 {[%emt 0:00:43]} 15. Bxe4 {[%emt 0:00:37]} Bb4 {[%emt 0:01:23]} 16. a3 {[%emt 0:04:07]} Be7 {[%emt 0:00:30]} 17. Be3 {[%emt 0:00:16]} Bf6 {[%emt 0:00:34]} 18. Red1 {[%emt 0:00:10]} Rc8 {[%emt 0:01:37]} 19. Bf3 {[%emt 0:01:21]} Bg5 {[%emt 0:01:15]} 20. Bxg5 {[%emt 0:00:55]} hxg5 {[%emt 0:00:43]} 21. b4 {[%emt 0:00:47]} Qf6 {[%emt 0:00:29]} 22. Bg2 {[%emt 0:00:21]} Bf5 {[%emt 0:00:30]} 23. Qb3 {[%emt 0:00:39]} Bg4 {[%emt 0:00:35]} 24. Rd2 {[%emt 0:00:21]} Bf3 {[%emt 0:00:31]} 25. Na4 {[%emt 0:00:29]} Bxg2 {[%emt 0:00:19]} 26. Kxg2 {[%emt 0:00:02]} Rcd8 {[%emt 0:00:34]} 27. Rad1 {[%emt 0:00:05]} g4 {[%emt 0:00:26]} 28. Nc5 {[%emt 0:00:27]} b6 {[%emt 0:00:30]} 29. Na4 {[%emt 0:00:01]} Rd5 {[%emt 0:00:16]} 30. Nc3 {[%emt 0:00:05]} Qf3+ {[%emt 0:00:32]} 31. Kg1 {[%emt 0:00:18]} Rh5 {[%emt 0:00:16]} 32. Rd3 {[%emt 0:00:17]} Qf5 {[%emt 0:00:18]} 33. Qb2 {[%emt 0:00:12]} Re6 {[%emt 0:00:24]} 34. f4 {[%emt 0:00:12]} gxf3 {[%emt 0:00:40]} 35. Qf2 {[%emt 0:00:03]} Rf6 {[%emt 0:00:28]} 36. Re3 {[%emt 0:00:13]} Qh7 {[%emt 0:00:07]} 37. Rd2 {[%emt 0:00:14]} Qf5 {[%emt 0:00:14]} 38. Ne4 {[%emt 0:00:07]} Re6 {[%emt 0:00:07]} 39. Nc3 {[%emt 0:00:12]} Rxe3 {[%emt 0:00:02]} 40. Qxe3 {[%emt 0:00:02]} Ne6 {[%emt 0:00:26]} 41. Rf2 {[%emt 0:00:03]} Ng5 {[%emt 0:00:04]} 42. Kf1 {[%emt 0:00:18]} Rh6 {[%emt 0:00:13]} 43. h4 {[%emt 0:00:13]} Qh3+ {[%emt 0:00:05]} 44. Ke1 {[%emt 0:00:01]} Re6 {[%emt 0:00:01]} 45. Kd2 {[%emt 0:00:23]} Rxe3 {[%emt 0:00:03]} 46. Kxe3 {[%emt 0:00:01]} Qe6+ {[%emt 0:00:05]} 47. Kd3 {[%emt 0:00:04]} Qf5+ {[%emt 0:00:31]} 48. Ke3 {[%emt 0:00:05]} Ne6 {[%emt 0:00:11]} 49. Rxf3 {[%emt 0:00:04]} Qc2 {[%emt 0:00:03]} 50. Ne2 {[%emt 0:00:10]} Qb2 {[%emt 0:00:10]} 0-1

[Event "13th All African Mixed Team Rapid-ch 202"]
[Site "Accra"]
[Date "2024.03.09"]
[Round "6.5"]
[White "Rakotomaharo, Fy Antenaina"]
[Black "Mhango, Banele"]
[Result "1-0"]
[ECO "B31"]
[WhiteElo "2454"]
[BlackElo "2193"]
[Annotator "TA"]
[PlyCount "79"]
[EventDate "2024.03.07"]
[EventType "rapid"]
[EventCountry "GHA"]
[SourceTitle "playchess.com"]
[Source "ChessBase"]
[SourceQuality "1"]
[TimeControl "900+10"]

{[%evp 9,79,2,21,18,20,4,24,20,25,16,29,27,22,22,32,18,16,13,21,19,17,0,-1,-2,-18,-72,-72,-83,-19,-37,-31,-32,-27,-22,-31,-53,-30,-60,-11,-98,-17,-7,-6,-26,-8,-12,-11,-25,-11,-11,0,-30,-6,-18,53,62,66,45,37,47,15,24,65,16,15,0,0,-3,0,-150,29984,29982]} 1. e4 {[%emt 0:00:03]} c5 {[%emt 0:00:01]} 2. a4 {[%emt 0:00:02]} d6 {[%emt 0:00:31]} 3. Bb5+ {[%emt 0:00:05]} Nd7 {[%emt 0:00:01]} 4. f4 {[%emt 0:00:47]} a6 {[%emt 0:00:17]} 5. Be2 {[%emt 0:00:04]} Ngf6 {[%emt 0:00:04]} 6. d3 {[%emt 0:00:03]} e6 {[%emt 0:01:27]} 7. Nf3 {[%emt 0:00:05]} Qc7 {[%emt 0:00:02]} 8. O-O {[%emt 0:00:22] White has an edge.} Be7 {[%emt 0:00:02]} 9. c4 {[%emt 0:00:09]} Nb8 {[%emt 0:00:37]} 10. Nc3 {[%emt 0:00:12]} Nc6 {[%emt 0:00:02]} 11. Kh1 {[%emt 0:00:03]} b6 {[%emt 0:00:21]} 12. d4 {[%emt 0:00:46]} cxd4 {[%emt 0:00:03]} 13. Nxd4 {[%emt 0:00:02]} Bb7 {[%emt 0:00:10]} 14. Nxc6 {[%emt 0:02:03]} Bxc6 {[%emt 0:00:01]} 15. Qd4 {[%emt 0:00:07]} O-O {[%emt 0:00:35]} 16. Be3 {[%emt 0:00:02]} Nd7 {[%emt 0:00:22]} 17. Bg1 {[%emt 0:06:13]} (17. Qd1 $11) 17... Bf6 $17 {[%emt 0:01:31]} 18. Qe3 {[%emt 0:00:22] [#]} Nc5 {[%emt 0:00:55]} ({Black should play} 18... Bxc3 $1 $17 19. Qxc3 Bxe4) 19. b4 $11 {[%emt 0:01:30][%cal Bb2b4,Bb4b5][%mdl 32]} Bxc3 {[%emt 0:01:10]} 20. Qxc3 {[%emt 0:00:11]} Nxe4 {[%emt 0:00:03]} (20... Nxa4 $6 21. Qc2 $16) 21. Qd4 {[%emt 0:00:03]} Rab8 {[%emt 0:03:41]} 22. b5 {[%emt 0:01:43] Bf3 is the strong threat.} Ba8 {[%emt 0:00:11]} 23. a5 {[%emt 0:00:04]} Nc5 {[%emt 0:01:14]} (23... bxa5 $15 24. b6 Qc5) 24. Rfd1 {[%emt 0:01:29] [#]} (24. axb6 $11 {remains equal.} Rxb6 25. f5) 24... Rfd8 {[%emt 0:00:49]} (24... Nb3 $1 $17 {[%cal Rb3d4]} 25. axb6 Qb7) 25. axb6 {[%emt 0:00:36]} Rxb6 {[%emt 0:00:23]} 26. Bf1 {[%emt 0:00:30][%cal Oa1a6]} axb5 {[%emt 0:01:18]} 27. cxb5 {[%emt 0:00:04]} Rbb8 {[%emt 0:00:08]} 28. Ra3 {[%emt 0:00:03] Wards off Nb3} Be4 {[%emt 0:01:19]} 29. Rg3 {[%emt 0:00:12][%csl Gg3][%cal Rd4g7]} f5 {[%emt 0:00:04]} 30. Qc3 {[%emt 0:00:14]} Rd7 {[%emt 0:00:42]} 31. Bc4 {[%emt 0:00:45] Strongly threatening Bxc5.} d5 {[%emt 0:01:21]} (31... Kh8 $11) 32. Bf1 $14 {[%emt 0:00:02][%mdl 1024] White has compensation.} Na4 {[%emt 0:00:15]} 33. Qa1 {[%emt 0:00:40]} Nb6 $1 {[%emt 0:00:32]} 34. Bd4 $36 {[%emt 0:00:02][%mdl 2048] White fights for an advantage.} Ra8 {[%emt 0:00:08]} 35. Qb2 {[%emt 0:00:32]} Nc4 {[%emt 0:00:05]} 36. Qf2 {[%emt 0:00:21]} (36. Ra1 $1 $14 Rxa1 (36... Qxf4 37. Rxa8+) 37. Qxa1) 36... h6 {[%emt 0:00:21]} 37. Rg6 {[%emt 0:00:14]} Re7 {[%emt 0:00:13]} 38. Qh4 {[%emt 0:00:05]} Kh7 {[%emt 0:00:05]} 39. Qh5 {[%emt 0:00:17]} ({Better is} 39. b6 $11 Nxb6 40. Qh5 (40. Bxb6 Qxb6 $11)) 39... Qd7 $2 {[%emt 0:00:13] [#]} (39... Qxf4 $17 40. Rg3 Qc7 (40... e5 41. Bc5 $11)) 40. Bxg7 $1 {[%emt 0:00:05][%mdl 512] Weighted Error Value: White=0.20 (precise) /Black=0.28 (precise) .  Loses game:     	---       	Black=1      Mistake:       	White=4     	Black=4      Inaccurate:     	White=1     	Black=1      OK:         	White=13    	Black=14     Best:        	---       	Black=2      Strong:       	---       	Black=1      Brilliant:      	White=1     	---} 1-0

[Event "13th All African Mixed Team Rapid-ch 202"]
[Site "Accra"]
[Date "2024.03.09"]
[Round "6.6"]
[White "February, Jesse Nikki"]
[Black "Tsinjoviniavo, Aina Mahasambatra"]
[Result "1-0"]
[ECO "D00"]
[WhiteElo "1920"]
[BlackElo "1681"]
[Annotator "RC"]
[PlyCount "111"]
[EventDate "2024.03.07"]
[EventType "rapid"]
[EventCountry "GHA"]
[SourceTitle "playchess.com"]
[Source "ChessBase"]
[SourceQuality "1"]
[TimeControl "900+10"]

1. d4 {[%emt 0:00:05]} d5 {[%emt 0:00:01]} 2. Nc3 {[%emt 0:00:04]} Nf6 {[%emt 0:00:02]} 3. Bf4 {[%emt 0:00:03]} a6 {[%emt 0:00:05]} 4. e3 {[%emt 0:00:16]} Bf5 {[%emt 0:00:04]} 5. Bd3 {[%emt 0:01:08]} Bg6 {[%emt 0:00:08]} 6. h4 {[%emt 0:00:40]} Nbd7 {[%emt 0:01:36]} 7. h5 {[%emt 0:01:03]} Be4 {[%emt 0:00:24]} 8. Nf3 {[%emt 0:01:53]} e6 {[%emt 0:00:33]} 9. Bxe4 {[%emt 0:00:35]} Nxe4 {[%emt 0:00:25]} 10. Nxe4 {[%emt 0:00:13]} dxe4 {[%emt 0:00:02]} 11. Ng5 {[%emt 0:00:44]} Nf6 {[%emt 0:00:17]} 12. Be5 {[%emt 0:01:22]} Qd5 {[%emt 0:00:49]} 13. h6 {[%emt 0:01:53]} Rg8 {[%emt 0:01:45]} 14. hxg7 {[%emt 0:04:08]} Bxg7 {[%emt 0:00:05]} 15. Bxf6 {[%emt 0:00:38]} Bxf6 {[%emt 0:00:09]} 16. Nxh7 {[%emt 0:00:07]} Be7 {[%emt 0:00:11]} 17. Rh5 {[%emt 0:00:51]} Qc4 {[%emt 0:00:26]} 18. Qe2 {[%emt 0:00:56]} Qxe2+ {[%emt 0:01:03]} 19. Kxe2 {[%emt 0:00:01]} Rxg2 {[%emt 0:00:05]} 20. Rh6 {[%emt 0:00:59]} O-O-O {[%emt 0:01:17]} 21. Nf6 {[%emt 0:00:02]} c5 {[%emt 0:00:48]} 22. dxc5 {[%emt 0:00:31]} Bxc5 {[%emt 0:00:08]} 23. Nxe4 {[%emt 0:00:05]} Bb6 {[%emt 0:00:32]} 24. Rah1 {[%emt 0:00:14]} f5 {[%emt 0:00:54]} 25. Nc3 {[%emt 0:00:01]} Re8 {[%emt 0:00:27]} 26. Rh8 {[%emt 0:00:05]} Rxh8 {[%emt 0:00:08]} 27. Rxh8+ {[%emt 0:00:02]} Kd7 {[%emt 0:00:02]} 28. Rh7+ {[%emt 0:00:05]} Kc6 {[%emt 0:00:05]} 29. Kf3 {[%emt 0:00:04]} Rg1 {[%emt 0:00:10]} 30. Re7 {[%emt 0:00:31]} Kd6 {[%emt 0:00:51]} 31. Rxb7 {[%emt 0:00:05]} Ba5 {[%emt 0:00:04]} 32. Ne2 {[%emt 0:00:26]} Ra1 {[%emt 0:00:16]} 33. a3 {[%emt 0:00:02]} Kc6 {[%emt 0:00:02]} 34. Re7 {[%emt 0:00:04]} Kd5 {[%emt 0:00:08]} 35. Nf4+ {[%emt 0:00:13]} Kc5 {[%emt 0:00:20]} 36. b4+ {[%emt 0:00:09]} Bxb4 {[%emt 0:00:06]} 37. axb4+ {[%emt 0:01:02]} Kxb4 {[%emt 0:00:02]} 38. Rxe6 {[%emt 0:00:00]} a5 {[%emt 0:00:04]} 39. Re5 {[%emt 0:00:00]} a4 {[%emt 0:00:07]} 40. Rxf5 {[%emt 0:00:00]} a3 {[%emt 0:00:01]} 41. Nd5+ {[%emt 0:00:00]} Kc4 {[%emt 0:00:05]} 42. Nb6+ {[%emt 0:00:00]} Kc3 {[%emt 0:00:05]} 43. Rc5+ {[%emt 0:00:11]} Kb2 {[%emt 0:00:06]} 44. Nc4+ {[%emt 0:00:04]} Kb1 {[%emt 0:00:13]} 45. Nxa3+ {[%emt 0:00:02]} Rxa3 {[%emt 0:00:04]} 46. Kf4 {[%emt 0:00:03]} Ra4+ {[%emt 0:00:04]} 47. e4 {[%emt 0:00:01]} Kc1 {[%emt 0:00:03]} 48. Kf5 {[%emt 0:00:01]} Kd2 {[%emt 0:00:02]} 49. f4 {[%emt 0:00:02]} Ke3 {[%emt 0:00:02]} 50. c4 {[%emt 0:00:05]} Ra6 {[%emt 0:00:03]} 51. e5 {[%emt 0:00:02]} Kd4 {[%emt 0:00:02]} 52. Rc8 {[%emt 0:00:03]} Rh6 {[%emt 0:00:15]} 53. e6 {[%emt 0:00:17]} Rh1 {[%emt 0:00:23]} 54. e7 {[%emt 0:00:04]} Re1 {[%emt 0:00:01]} 55. e8=Q {[%emt 0:00:04]} Rxe8 {[%emt 0:00:03]} 56. Rxe8 {[%emt 0:00:00]} 1-0

[Event "13th All African Mixed Team Rapid-ch 202"]
[Site "Accra"]
[Date "2024.03.09"]
[Round "6.7"]
[White "Cogan, Nicolas"]
[Black "Rongwane, Gomolemo"]
[Result "1/2-1/2"]
[ECO "D36"]
[WhiteElo "2070"]
[BlackElo "2021"]
[Annotator "RC"]
[PlyCount "107"]
[EventDate "2024.03.07"]
[EventType "rapid"]
[EventCountry "GHA"]
[SourceTitle "playchess.com"]
[Source "ChessBase"]
[SourceQuality "1"]
[TimeControl "900+10"]

1. d4 {[%emt 0:00:12]} Nf6 {[%emt 0:00:08]} 2. c4 {[%emt 0:00:03]} e6 {[%emt 0:00:10]} 3. Nc3 {[%emt 0:00:02]} d5 {[%emt 0:00:06]} 4. cxd5 {[%emt 0:00:03]} exd5 {[%emt 0:00:01]} 5. Bg5 {[%emt 0:00:02]} Be7 {[%emt 0:00:10]} 6. Qc2 {[%emt 0:00:06]} c6 {[%emt 0:00:06]} 7. e3 {[%emt 0:00:02]} O-O {[%emt 0:00:03]} 8. Bd3 {[%emt 0:00:03]} Nbd7 {[%emt 0:00:02]} 9. Nge2 {[%emt 0:00:08]} Re8 {[%emt 0:00:08]} 10. O-O {[%emt 0:00:10]} Nf8 {[%emt 0:00:10]} 11. f3 {[%emt 0:00:34]} Nh5 {[%emt 0:00:09]} 12. Bxe7 {[%emt 0:00:20]} Qxe7 {[%emt 0:00:52]} 13. e4 {[%emt 0:00:11]} dxe4 {[%emt 0:00:45]} 14. fxe4 {[%emt 0:00:03]} Qg5 {[%emt 0:00:43]} 15. Kh1 {[%emt 0:01:39]} Bg4 {[%emt 0:00:44]} 16. e5 {[%emt 0:00:42]} Bxe2 {[%emt 0:00:44]} 17. Bxe2 {[%emt 0:02:06]} Nf4 {[%emt 0:01:01]} 18. Bc4 {[%emt 0:00:16]} N8e6 {[%emt 0:00:59]} 19. Qf2 {[%emt 0:00:31]} Qg6 {[%emt 0:01:58]} 20. Rae1 {[%emt 0:01:43]} Rad8 {[%emt 0:01:16]} 21. Re4 {[%emt 0:02:21]} b5 {[%emt 0:01:32]} 22. Bxe6 {[%emt 0:05:11]} Nxe6 {[%emt 0:00:09]} 23. h3 {[%emt 0:01:00]} h5 {[%emt 0:00:32]} 24. Qe3 {[%emt 0:00:54]} Rd7 {[%emt 0:00:33]} 25. Ne2 {[%emt 0:00:33]} Red8 {[%emt 0:00:38]} 26. Nf4 {[%emt 0:00:17]} Qh6 {[%emt 0:00:22]} 27. Nxe6 {[%emt 0:00:16]} Qxe3 {[%emt 0:00:02]} 28. Rxe3 {[%emt 0:00:04]} fxe6 {[%emt 0:00:01]} 29. Rc1 {[%emt 0:00:17]} Rc8 {[%emt 0:00:33]} 30. Rec3 {[%emt 0:00:01]} Rdc7 {[%emt 0:00:13]} 31. Kg1 {[%emt 0:00:01]} Kf7 {[%emt 0:00:07]} 32. Kf2 {[%emt 0:00:01]} Ke7 {[%emt 0:00:03]} 33. Ke3 {[%emt 0:00:04]} Kd7 {[%emt 0:00:44]} 34. Rf1 {[%emt 0:00:03]} Re8 {[%emt 0:00:06]} 35. Rf7+ {[%emt 0:00:16]} Kc8 {[%emt 0:00:46]} 36. Rf1 {[%emt 0:00:42]} Kb7 {[%emt 0:00:30]} 37. Ke4 {[%emt 0:00:07]} Rd8 {[%emt 0:00:02]} 38. b4 {[%emt 0:00:10]} Rcd7 {[%emt 0:00:10]} 39. Rd3 {[%emt 0:00:02]} Kb6 {[%emt 0:00:04]} 40. Rfd1 {[%emt 0:00:20]} a5 {[%emt 0:00:05]} 41. a3 {[%emt 0:00:10]} axb4 {[%emt 0:00:04]} 42. axb4 {[%emt 0:00:01]} Ra8 {[%emt 0:00:06]} 43. Rc3 {[%emt 0:00:18]} Ra4 {[%emt 0:00:44]} 44. Rdc1 {[%emt 0:00:04]} Rc7 {[%emt 0:00:02]} 45. Rb1 {[%emt 0:00:16]} Ra2 {[%emt 0:00:06]} 46. g3 {[%emt 0:00:12]} Rh2 {[%emt 0:00:15]} 47. h4 {[%emt 0:00:09]} Rf7 {[%emt 0:01:05]} 48. Rbc1 {[%emt 0:00:09]} Rc7 {[%emt 0:00:24]} 49. Rb1 {[%emt 0:00:02]} Kb7 {[%emt 0:00:02]} 50. Rf3 {[%emt 0:00:19]} Rd2 {[%emt 0:00:16]} 51. Rbb3 {[%emt 0:00:11]} Rd7 {[%emt 0:00:16]} 52. Rbd3 {[%emt 0:00:09]} Re2+ {[%emt 0:00:10]} 53. Rde3 {[%emt 0:00:04]} Rc2 {[%emt 0:00:08]} 54. Rc3 {[%emt 0:00:12]} 1/2-1/2

[Event "13th All African Mixed Team Rapid-ch 202"]
[Site "Accra"]
[Date "2024.03.09"]
[Round "6.8"]
[White "Banda Natalie Katlo"]
[Black "Yavo Tchetche, Marie"]
[Result "1/2-1/2"]
[ECO "B07"]
[WhiteElo "1772"]
[BlackElo "1659"]
[Annotator "NA RC"]
[PlyCount "71"]
[EventDate "2024.03.07"]
[EventType "rapid"]
[EventCountry "GHA"]
[SourceTitle "playchess.com"]
[Source "ChessBase"]
[SourceQuality "1"]
[TimeControl "900+10"]

1. d4 {[%emt 0:00:01]} Nf6 {[%emt 0:00:04]} 2. Nf3 {[%emt 0:00:08]} g6 {[%emt 0:00:02]} 3. Nbd2 {[%emt 0:00:11]} Bg7 {[%emt 0:00:01]} 4. c3 {[%emt 0:00:02]} O-O {[%emt 0:00:07]} 5. e4 {[%emt 0:00:27]} d6 {[%emt 0:00:02]} 6. Bd3 {[%emt 0:00:07]} Nbd7 {[%emt 0:00:03]} 7. O-O {[%emt 0:00:06]} e5 {[%emt 0:03:14]} 8. dxe5 {[%emt 0:00:38]} Nxe5 {[%emt 0:00:08]} 9. Nxe5 {[%emt 0:01:09]} dxe5 {[%emt 0:00:03]} 10. Nc4 {[%emt 0:00:26]} Qe7 {[%emt 0:01:12]} 11. Bg5 {[%emt 0:01:56]} Rd8 {[%emt 0:00:23]} 12. Qc2 {[%emt 0:00:18]} b6 {[%emt 0:01:11]} 13. Rfe1 {[%emt 0:01:23]} h6 {[%emt 0:01:05]} 14. Bxf6 {[%emt 0:00:40]} Qxf6 {[%emt 0:00:23]} 15. f3 {[%emt 0:00:14]} Ba6 {[%emt 0:01:01]} 16. Rad1 {[%emt 0:00:23]} Bb7 {[%emt 0:01:02]} 17. Bf1 {[%emt 0:00:21]} Rxd1 {[%emt 0:00:25]} 18. Rxd1 {[%emt 0:00:05]} Rd8 {[%emt 0:00:02]} 19. Rd2 {[%emt 0:01:04]} Qe7 {[%emt 0:01:48]} 20. Qd1 {[%emt 0:01:21]} Rxd2 {[%emt 0:00:03]} 21. Qxd2 {[%emt 0:00:05]} Ba6 {[%emt 0:00:12]} 22. Qd5 {[%emt 0:00:59]} Kh7 {[%emt 0:01:05]} 23. Ne3 {[%emt 0:01:10]} Bxf1 {[%emt 0:01:03]} 24. Kxf1 {[%emt 0:00:02]} Bf8 {[%emt 0:01:17]} 25. Qc6 {[%emt 0:01:06]} Kg7 {[%emt 0:00:12]} 26. Nd5 {[%emt 0:00:07]} Qg5 {[%emt 0:00:41]} 27. Qxc7 {[%emt 0:02:22]} Qc1+ {[%emt 0:00:02]} 28. Kf2 {[%emt 0:00:12]} Bc5+ {[%emt 0:00:18]} 29. Ke2 {[%emt 0:00:51]} Qxb2+ {[%emt 0:00:38]} 30. Kd3 {[%emt 0:00:12]} Qb1+ {[%emt 0:00:13]} 31. Kd2 {[%emt 0:00:34]} Qxa2+ {[%emt 0:00:07]} 32. Kd3 {[%emt 0:00:33]} Qb1+ {[%emt 0:00:13]} 33. Kd2 {[%emt 0:00:16]} Qb2+ {[%emt 0:00:12]} 34. Kd3 {[%emt 0:00:08]} Qb1+ {[%emt 0:00:27]} 35. Kd2 {[%emt 0:00:01]} Qb2+ {[%emt 0:00:20]} 36. Kd3 {[%emt 0:00:01]} 1/2-1/2